Cogmind - Beta 10.2 @@@ ROGUE MODE // 2020.12.14 @ 19:51:49 Player: CrossedViper Result: Destroyed by G-47 Trooper with Particle Gun Performance ------------- Evolutions (2) 1000 Regions Visited (6) 1200 Robots Destroyed (121) 605 Value Destroyed (3914) 3914 Prototype IDs (8) 160 Alien Tech Used (0) 0 Bonus (2619) 2619 TOTAL SCORE: 9498 Bonus ------- Triggered High Security 500 High Alert Combat Kills 984 Follower Combat Kills 864 Entered Garrisons 200 Used RIF Installer 500 Friendly Fire -429 Cogmind --------- Core Integrity 0/550 Matter 300/300 Energy 100/100 System Corruption 0% Temperature Cool (18) Movement Walking (155) Ox1 Location -8/Garrison Parts ------- > --- POWER (2) -------- (None) > --- PROPULSION (2) --- Improved Aluminum Leg Improved Titanium Leg > --- UTILITY (5) ------ Large Storage Unit Large Storage Unit > --- WEAPON (2) ------- Katana > --- INVENTORY (16) --- Cold Fusion Reactor Improved Titanium Leg Experimental Sensor Array Relay Coupler [Grunt] (31) Relay Coupler [Sentry] (24) Grenade Launcher Axe Peak State ------------ > --- POWER ------------ Micro Nuclear Core Micro Nuclear Core > --- PROPULSION ------- Improved Titanium Leg Improved Titanium Leg > --- UTILITY ---------- Improved Heat Sink Large Storage Unit Large Storage Unit Reactive Plating Reactive Plating > --- WEAPON ----------- Beam Rifle Advanced Beam Cannon > --- INVENTORY -------- Cooled Ion Engine Cooled Ion Engine Cooled Ion Engine Cold Fusion Reactor Improved Aluminum Leg Improved Aluminum Leg Improved Titanium Leg Improved Titanium Leg Experimental Sensor Array Hardened Light Armor Plating Advanced Beam Cannon Grenade Launcher Rocket Launcher Katana Axe Axe [Rating: 37] Favorites ----------- Power Micro Nuclear Core Engine Cooled Ion Engine Power Core Micro Nuclear Core Propulsion Aluminum Leg Treads Light Treads Leg Aluminum Leg Utility Large Storage Unit Device Improved Heat Sink Storage Large Storage Unit Protection Reactive Plating Weapon Heavy EM Pulse Gun Energy Gun Heavy EM Pulse Gun Energy Cannon Advanced Beam Cannon Ballistic Gun Improved Assault Rifle Launcher Rocket Launcher Slashing Weapon Katana Build | -11 -10 -10 -9 -9 -8 -8 ------- Run | Scr Mat Min Mat Sto Mat Gar Slots Evolved 4 | . . . 2 . 2 . Power 1 | . . . . . 1 . Propulsion . | . . . . . . . Utility 3 | . . . 2 . 1 . Weapon . | . . . . . . . Parts Attached 78 | . 8 4 10 16 16 24 Power 13 | . . 2 . 4 4 3 Engine 11 | . . 2 . 4 2 3 Core 2 | . . . . . 2 . Reactor . | . . . . . . . Propulsion 19 | . 2 2 . 2 4 9 Treads 4 | . . . . . 2 2 Leg 15 | . 2 2 . 2 2 7 Wheel . | . . . . . . . Hover . | . . . . . . . Flight . | . . . . . . . Utility 16 | . 4 . 3 1 5 3 Device 3 | . . . 1 . 1 1 Storage 4 | . 4 . . . . . Processor . | . . . . . . . Hackware . | . . . . . . . Protection 9 | . . . 2 1 4 2 Artifact . | . . . . . . . Weapon 30 | . 2 . 7 9 3 9 Energy Gun 8 | . 2 . 2 3 . 1 Energy Cannon 12 | . . . 3 3 1 5 Ballistic Gun 4 | . . . . 3 1 . Ballistic Cannon . | . . . . . . . Launcher 5 | . . . 2 . 1 2 Special Weapon . | . . . . . . . Impact Weapon . | . . . . . . . Slashing Weapon 1 | . . . . . . 1 Piercing Weapon . | . . . . . . . Special Melee Weapon . | . . . . . . . Unidentified Prototypes 6 | . . . 2 3 . 1 Parts Lost 24 | . . . 2 4 3 15 Power 4 | . . . . . . 4 Propulsion 4 | . . . . . 2 2 Utility 6 | . . . 1 1 . 4 Weapon 10 | . . . 1 3 1 5 Highest Loss Streak 14 | . . . 1 2 1 14 Average Slot Usage (%) 96 | . 96 100 96 92 95 98 Engine 9 | . 14 14 11 11 9 2 Core 4 | . . . . . 5 15 Treads 3 | . . . . . 8 10 Leg 18 | . 28 28 22 22 9 7 Device 6 | . . . 9 11 9 9 Storage 21 | . 24 28 22 22 18 18 Protection 8 | . . . 9 6 17 17 Energy Gun 12 | . 21 28 12 13 . 2 Energy Cannon 4 | . . . 7 5 2 9 Ballistic Gun 3 | . 6 . . . 11 5 Naked Turns . | . . . . . . . Heaviest Build 79 | 13 43 47 53 52 75 79 Greatest Support 40 | 20 20 30 30 30 40 40 Greatest Overweight (x) 5 | . 2 2 1 1 3 5 Average Overweight (x) 1 | . 1 1 1 1 1 1 Largest Inventory Capacity 16 | . 16 16 16 16 16 16 Average Capacity 15 | . 13 16 16 16 16 16 Most Carried 16 | . 10 16 16 16 16 16 Average Carried 13 | . 7 12 15 15 15 15 Final Capacity 16 | 6 16 16 16 16 16 16 Final Carried 16 | 6 9 16 16 15 16 7 Class Distribution -------------------- 68% | Mutant 17% | Commander-Mutant 13% | Scavenger-Mutant Dominant Class ---------------- Mutant | -10/Materials Mutant | -10/Mines Scavenger-Mutant | -9/Materials Mutant | -9/Storage Mutant | -8/Materials Commander-Mutant | -8/Garrison Resources | -11 -10 -10 -9 -9 -8 -8 ----------- Run | Scr Mat Min Mat Sto Mat Gar Matter Collected 1845 | 189 119 108 162 212 526 529 Remotely . | . . . . . . . Salvage Created 4383 | . 474 248 822 908 917 1014 Parts 276 | . 33 14 56 67 50 56 Haulers Intercepted 11 | . 1 . 4 5 1 . Recyclers Shooed 3 | . . . 2 . 1 . Parts Field Recycled . | . . . . . . . Retrieved Matter . | . . . . . . . Parts Self-Destructed . | . . . . . . . Prevented . | . . . . . . . Kills | -11 -10 -10 -9 -9 -8 -8 ------- Run | Scr Mat Min Mat Sto Mat Gar Combat Hostiles Destroyed 94 | . 13 . 21 14 19 27 Guns 42 | . 12 . 6 11 7 6 Cannons 19 | . . . 2 3 5 9 AOE 33 | . 1 . 13 . 7 12 Classes Destroyed 12 | . 4 2 2 1 1 2 Builder 1 | . . . . 1 . . Tunneler 2 | . . 1 . . 1 . Hauler 11 | . 1 . 4 5 1 . Recycler 5 | . . 1 3 . 1 . Mechanic 1 | . . . . . . 1 Operator 2 | . 1 . . 1 . . Watcher 3 | . . . 1 2 . . Swarmer 24 | . 6 . 12 4 . 2 Grunt 44 | . 7 . 7 5 12 13 Brawler 6 | . . . . . 2 4 Protector 2 | . . . . . . 2 Sentry 18 | . . . 2 5 5 6 Thug 2 | . . 2 . . . . Best Kill Streak 15 | . 7 2 7 7 4 15 Combat Bots Only 14 | . 7 . 6 4 4 14 Max Kills in Single Turn 3 | . 1 1 3 1 1 2 Gunslinging . | . . . . . . . Exploded 3 | . 1 . 3 . 1 2 Melee . | . . . . . . . Uniques/NPCs Destroyed . | . . . . . . . Combat | -11 -10 -10 -9 -9 -8 -8 -------- Run | Scr Mat Min Mat Sto Mat Gar Damage Taken 5687 | . 421 32 478 687 1356 2713 Core 834 | . 124 . 22 127 174 387 Absorbed by Shields . | . . . . . . . Core Remaining (%) 70 | 100 . 50 . 62 . . Volleys Fired 319 | . 37 13 44 79 75 71 Largest 2 | . 2 2 2 2 2 2 Hottest 143 | . 90 90 113 143 91 128 Shots Fired 569 | . 74 26 73 137 129 130 Gun 375 | . 74 26 42 101 83 49 Cannon 153 | . . . 17 36 30 70 Launcher 41 | . . . 14 . 16 11 Special . | . . . . . . . Kinetic 146 | . 32 . . . 83 31 Thermal 219 | . . . 17 84 30 88 Explosive 41 | . . . 14 . 16 11 Electromagnetic 163 | . 42 26 42 53 . . Robot Hit Streak 18 | . 5 4 7 12 13 18 Robot Miss Streak 4 | . 3 2 3 4 2 3 Penetration Max . | . . . . . . . Secondary Targets 6 | . 3 . . 2 1 . Max Gunslinging Chain 1 | . 1 . . 1 1 . Shots Hit Robots 343 | . 42 18 37 74 91 81 Core Hits 207 | . 20 9 40 28 50 60 Critical Hits 13 | . . . . 3 4 6 Critical Kills 2 | . . . . 1 . 1 Critical Parts Destroyed 10 | . . . . 2 3 5 Melee Attacks 7 | . . . . . . 7 Impact . | . . . . . . . Slashing 7 | . . . . . . 7 Piercing . | . . . . . . . Sneak Attacks . | . . . . . . . Combat Hostiles . | . . . . . . . Follow-up Attacks . | . . . . . . . Damage Inflicted 9306 | . 592 308 1616 1391 2036 3363 Guns 3673 | . 493 308 463 959 955 495 Cannons 1806 | . . . 62 432 348 964 Explosions 3706 | . 99 . 1091 . 733 1783 Melee 117 | . . . . . . 117 Ramming 4 | . . . . . . 4 Kinetic 1435 | . 130 . . . 955 350 Thermal 2491 | . 99 . 62 873 348 1109 Explosive 3607 | . . . 1091 . 733 1783 Electromagnetic 1652 | . 363 308 463 518 . . Impact . | . . . . . . . Slashing 117 | . . . . . . 117 Piercing . | . . . . . . . Highest Corruption 1 | . 1 1 1 1 . . Average Corruption 1 | . 1 1 1 1 . . Corruption Purged . | . . . . . . . Effects 18 | . 1 7 2 8 . . Message Errors 4 | . . 1 . 3 . . Energy Discharges 5 | . . 3 2 . . . Data Loss (minor) 3 | . 1 2 . . . . Targeting Errors 5 | . . 1 . 4 . . Weapon Failures 1 | . . . . 1 . . Overload Shots . | . . . . . . . Overflow Damage 96 | . . . 31 . 19 46 Projectiles 22 | . . . . . . 22 Explosions 74 | . . . 31 . 19 24 Melee . | . . . . . . . Knockbacks . | . . . . . . . Impact . | . . . . . . . Kinetic . | . . . . . . . Secondary . | . . . . . . . Self-Inflicted Damage 329 | . . . 27 . 33 269 Shots 14 | . . . 1 . 2 11 Rammed . | . . . . . . . Targets Rammed 1 | . . . . . . 1 Kicked 1 | . . . . . . 1 Crushed . | . . . . . . . Highest Temperature 350 | . 180 150 63 218 231 350 Average Temperature 76 | . 47 47 20 70 72 107 Received Heat Transfer 1911 | . 132 9 120 228 621 801 Effects 11 | . . . . 3 1 7 Shutdowns 2 | . . . . . . 2 Interference 6 | . . . . 3 1 2 Matter Decay 1 | . . . . . . 1 Damage (minor) 2 | . . . . . . 2 Siege Activations . | . . . . . . . Robots Corrupted 1 | . . . . 1 . . Combat Hostiles . | . . . . . . . Parts Fried 4 | . . . 1 3 . . Impact Corruptions . | . . . . . . . Robots Melted . | . . . . . . . Combat Hostiles . | . . . . . . . Parts Melted 2 | . . . . 2 . . Heat Transferred 4439 | . 150 . 111 1554 629 1995 Parts Sabotaged . | . . . . . . . Parts Stolen . | . . . . . . . Parts Stripped . | . . . . . . . Power Chain Reactions 2 | . 2 . . . . . Missiles Intercepted . | . . . . . . . Alert | -11 -10 -10 -9 -9 -8 -8 ------- Run | Scr Mat Min Mat Sto Mat Gar Peak Influence 2025 | . 342 49 546 485 665 2025 Initial 430 | . . 39 . 230 143 430 Average 454 | . 156 23 280 282 407 1126 Maximum Alert Level 5 | . 1 . 2 2 2 5 Low Security (%) 37 | . 78 100 40 14 12 . Level 1 24 | . 21 . 28 81 27 . Level 2 19 | . . . 31 4 60 28 Level 3 5 | . . . . . . 22 Level 4 8 | . . . . . . 31 Level 5 . | . . . . . . 1 High Security 4 | . . . . . . 16 Max Security . | . . . . . . . Squads Dispatched 17 | . 3 . 3 1 2 8 Investigation 5 | . 2 . 3 . . . Extermination . | . . . . . . . Reinforcement 4 | . 1 . . 1 2 . Assault 8 | . . . . . . 8 Garrison . | . . . . . . . Intercept . | . . . . . . . Construction Impeded . | . . . . . . . Haulers Reinforced . | . . . . . . . Stealth | -11 -10 -10 -9 -9 -8 -8 --------- Run | Scr Mat Min Mat Sto Mat Gar Distress Signals 6 | . 2 . 1 2 1 . Communications Jammed . | . . . . . . . Distress Signals . | . . . . . . . Times Spotted 200 | . 27 2 29 32 23 87 Peak Tracking Total 20 | . 6 2 5 4 5 20 Tactical Retreats 13 | . 1 . . 9 . 3 Traps | -11 -10 -10 -9 -9 -8 -8 ------- Run | Scr Mat Min Mat Sto Mat Gar Traps Triggered 9 | . 2 . 1 2 . 4 Indirectly . | . . . . . . . Trap Hack Attempts . | . . . . . . . Triggered . | . . . . . . . Disarmed 6 | . . . . 6 . . Reprogrammed . | . . . . . . . Reused . | . . . . . . . Traps Extracted . | . . . . . . . Installed . | . . . . . . . Triggered . | . . . . . . . Machines | -11 -10 -10 -9 -9 -8 -8 ---------- Run | Scr Mat Min Mat Sto Mat Gar Machines Disabled 19 | . 2 . 1 8 5 3 Max in Single Turn 2 | . 1 . 1 1 2 1 Garrison Access 1 | . . . . 1 . . Garrison Relay 2 | . . . . . . 2 Machines Sabotaged . | . . . . . . . Garrisons Compromised . | . . . . . . . Overloaded Fab Kills . | . . . . . . . Fab Network Shutdowns . | . . . . . . . Hacking | -11 -10 -10 -9 -9 -8 -8 --------- Run | Scr Mat Min Mat Sto Mat Gar Machines Accessed 21 | . 5 . 3 10 3 . Terminals 17 | . 4 . 2 9 2 . Fabricators . | . . . . . . . Repair Stations . | . . . . . . . Recycling Units 2 | . 1 . 1 . . . Scanalyzers . | . . . . . . . Garrison Access 2 | . . . . 1 1 . Total Hacks 52 | . 7 . 8 27 10 . Successful 26 | . 3 . 2 17 4 . Failed 26 | . 4 . 6 10 6 . Catastrophic 2 | . 1 . . 1 . . Database Lockouts . | . . . . . . . Manual 21 | . 5 . 1 9 6 . Terminals 44 | . 5 . 7 24 8 . Fabricators . | . . . . . . . Repair Stations . | . . . . . . . Recycling Units 3 | . 2 . 1 . . . Scanalyzers . | . . . . . . . Garrison Access 5 | . . . . 3 2 . Terminal Hacks 16 | . 1 . 1 13 1 . Prototype ID Bank 1 | . . . . 1 . . Open Door 4 | . . . . 4 . . Branch Access Points 2 | . 1 . 1 . . . Terminal Index 1 | . . . . 1 . . Alert Level 1 | . . . . 1 . . Unreport Threat 2 | . . . . 2 . . Locate Traps 1 | . . . . 1 . . Disarm Traps 2 | . . . . 2 . . Dispatch Records 1 | . . . . . 1 . Hauler Manifests 1 | . . . . 1 . . Fabricator Hacks . | . . . . . . . Repair Station Hacks . | . . . . . . . Recycling Unit Hacks . | . . . . . . . Scanalyzer . | . . . . . . . Garrison Access Hacks 2 | . . . . 1 1 . Unlock Access 1 | . . . . . 1 . Seal Access 1 | . . . . 1 . . Unauthorized Hacks 8 | . 2 . 1 3 2 . Terminals 6 | . 1 . . 3 2 . Track 2 | . . . . 1 1 . Botnet 4 | . 1 . . 2 1 . Fabricators . | . . . . . . . Repair Stations . | . . . . . . . Recycling Units 2 | . 1 . 1 . . . Tunnel 2 | . 1 . 1 . . . Scanalyzers . | . . . . . . . Garrison Access . | . . . . . . . Data Cores Recovered . | . . . . . . . Used . | . . . . . . . Hacking Detections 12 | . 3 . 1 5 3 . Full Trace Events 1 | . . . 1 . . . Feedback Events . | . . . . . . . Feedback Blocked . | . . . . . . . Robot Schematics Acquired . | . . . . . . . Robots Built . | . . . . . . . Matter . | . . . . . . . Time . | . . . . . . . Total Robot Build Rating . | . . . . . . . Part Schematics Acquired . | . . . . . . . Parts Built . | . . . . . . . Matter . | . . . . . . . Time . | . . . . . . . Total Part Build Rating . | . . . . . . . Parts Repaired . | . . . . . . . Time . | . . . . . . . Parts Recycled . | . . . . . . . Recycled Matter . | . . . . . . . Retrieved Matter . | . . . . . . . Retrieved Components . | . . . . . . . Parts Scanalyzed . | . . . . . . . Part Schematics Acquired . | . . . . . . . Parts Damaged . | . . . . . . . Bothacking | -11 -10 -10 -9 -9 -8 -8 ------------ Run | Scr Mat Min Mat Sto Mat Gar Used RIF Installer 1 | . . . . . . 1 Robots Hacked . | . . . . . . . Non-combat . | . . . . . . . Combat . | . . . . . . . Robot Hacks Applied . | . . . . . . . Relay Couplers Released 8 | . . . . . . 8 Machine Destruction 8 | . . . . . . 8 Robots Rewired 7 | . . . . . . 7 Allies Hacked . | . . . . . . . Hacks Repelled . | . . . . . . . Allies | -11 -10 -10 -9 -9 -8 -8 -------- Run | Scr Mat Min Mat Sto Mat Gar Total Allies 11 | . . 4 . . . 7 Largest Group 7 | . . 4 2 . . 7 Highest-Rated Group 182 | . . 71 24 . . 182 Highest-Rated Ally 38 | . . 31 16 . . 38 Total Orders . | . . . . . . . Ally Attacks 123 | . . 11 29 . . 83 Total Damage 2474 | . . 149 229 . . 2096 Kills 33 | . . 2 5 . . 26 Allies Corrupted . | . . . . . . . Allies Melted . | . . . . . . . Intel | -11 -10 -10 -9 -9 -8 -8 ------- Run | Scr Mat Min Mat Sto Mat Gar Robot Analysis Total . | . . . . . . . Derelict Logs Recovered 1 | . . 1 . . . . Drone Launches . | . . . . . . . Drone Recoveries . | . . . . . . . Exploration | -11 -10 -10 -9 -9 -8 -8 ------------- Run | Scr Mat Min Mat Sto Mat Gar Turns Passed 5732 | . 1054 849 629 994 728 1478 Spaces Moved 2707 | 1 543 444 325 488 266 640 Core . | . . . . . . . Treads 542 | . . . . . 165 377 Legs 2165 | 1 543 444 325 488 101 263 Wheels . | . . . . . . . Hover . | . . . . . . . Flight . | . . . . . . . Fastest Speed 120 | 120 120 150 150 150 150 155 Average Speed 166 | 120 162 177 150 150 182 174 Slowest Speed 270 | 120 180 180 150 150 210 270 Overloaded Moves . | . . . . . . . Propulsion Burnouts . | . . . . . . . Robots Hopped . | . . . . . . . Cave-ins Triggered . | . . . . . . . Exploration Rate (%) 59 | 2 87 90 51 86 21 79 Regions Visited 6 Branch Regions 2 Pre-discovered Areas 3 | . 1 1 1 . . . Known Exits Taken 3 | . 1 . 1 . 1 . Unknown Exits Taken 3 | 1 . 1 . 1 . . Scrap Searched 2 | . . 2 . . . . Spaces Dug 15 | . . . . . 4 11 Terrain Destroyed 244 | . 2 . 74 . 96 72 Melee . | . . . . . . . Projectile 1 | . . . . . . 1 AOE 243 | . 2 . 74 . 96 71 Terrain Rammed . | . . . . . . . Walls Destroyed . | . . . . . . . Machines Disabled . | . . . . . . . Actions | -11 -10 -10 -9 -9 -8 -8 --------- Run | Scr Mat Min Mat Sto Mat Gar Total 3372 | . 642 477 393 622 382 856 Wait 79 | . 33 4 5 3 1 33 Move 2701 | . 542 443 324 487 265 640 Hop . | . . . . . . . Pick Up 63 | . 13 10 6 16 14 4 Fast Attach 17 | . . . 2 8 3 4 Attach 27 | . 2 . 4 4 8 9 Detach . | . . . . . . . Swap 34 | . 6 4 4 4 5 11 Drop 58 | . 9 3 4 21 11 10 Fire 319 | . 37 13 44 79 75 71 Melee 7 | . . . . . . 7 Ram . | . . . . . . . Kick 1 | . . . . . . 1 Crush . | . . . . . . . Escape Stasis 8 | . . . . . . 8 Rewire 58 | . . . . . . 58 Trap . | . . . . . . . Miscellaneous . | . . . . . . . Route ------- -11/Scrapyard -10/Materials (discovered 4 exits: *Mat x3 / *Min) -10/Mines (discovered 3 exits: *Mat x2 / [*Exi]) -9/Materials (discovered 4 exits: *Mat / Min x2 / *Sto) -9/Storage -8/Materials -8/Garrison (discovered 3 exits: [*Mat x3]) History --------- Turn | Location | Event 1 | -11/Scrapyard | Discovered new exit (range 0) 1 | -11/Scrapyard | Entered Materials 80 | -10/Materials | Discovered new exit (range 15) 149 | -10/Materials | Identified exit to Mines 234 | -10/Materials | Destroyed 7 combat bots 322 | -10/Materials | Build established: Mutant 332 | -10/Materials | Discovered new exit (range 8) 593 | -10/Materials | Discovered new exit (range 14) 809 | -10/Materials | Discovered new exit (range 15) 1055 | -10/Materials | Entered Mines 1066 | -10/Mines | Assisted by bots powering up and referring to "LRC-V3" 1084 | -10/Mines | Found a damaged Exp. Sensor Array with a note attached 1088 | -10/Mines | Found Prototype Device 1197 | -10/Mines | Discovered new exit (range 7) 1231 | -10/Mines | Learned location of Recycling (-9) 1240 | -10/Mines | Deemed a non-threat by the Exiles lab entrance 1242 | -10/Mines | Discovered new exit (range 5) 1332 | -10/Mines | Received a Rocket Launcher from a helpful Derelict 1566 | -10/Mines | Received a Mining Laser from a helpful Derelict 1773 | -10/Mines | Discovered new exit (range 6) 1790 | -10/Mines | Joined a pair of Derelicts in attacking an 0b10 outpost 1904 | -10/Mines | Entered Materials 1904 | -9/Materials | Accompanied by 2 allies 1904 | -9/Materials | Evolved 2 slots: Utility x2 2241 | -9/Materials | Discovered new exit (range 13) 2299 | -9/Materials | Build established: Scavenger-Mutant 2397 | -9/Materials | Discovered new exit (range 11) 2496 | -9/Materials | Identified exit to Mines 2496 | -9/Materials | Identified exit to Storage 2533 | -9/Materials | Entered Storage 3096 | -9/Storage | Build established: Mutant 3470 | -9/Storage | Discovered new exit (range 5) 3527 | -9/Storage | Entered Materials 3527 | -8/Materials | Evolved 2 slots: Power x1, Utility x1 4253 | -8/Materials | Identified exit to Garrison 4255 | -8/Materials | Entered Garrison 4298 | -8/Garrison | Triggered checkpoint 4384 | -8/Garrison | Destroyed 7 combat bots 4506 | -8/Garrison | Identified Exp. Sensor Array 4616 | -8/Garrison | Triggered checkpoint 4694 | -8/Garrison | Triggered checkpoint 4732 | -8/Garrison | Triggered checkpoint 4754 | -8/Garrison | Triggered checkpoint 4761 | -8/Garrison | Build established: Commander-Mutant 4817 | -8/Garrison | Discovered new exit (range 10) 4868 | -8/Garrison | Triggered checkpoint 5037 | -8/Garrison | Discovered new exit (range 14) 5073 | -8/Garrison | Installed Relay Interface Framework 5240 | -8/Garrison | Triggered checkpoint 5327 | -8/Garrison | Garrison Relay disabled 5373 | -8/Garrison | Garrison Relay disabled 5482 | -8/Garrison | High security lockdown imminent 5490 | -8/Garrison | Triggered checkpoint 5505 | -8/Garrison | Discovered new exit (range 15) 5562 | -8/Garrison | High security lockdown engaged 5630 | -8/Garrison | Core integrity fell below 50% 5696 | -8/Garrison | Destroyed 14 combat bots 5715 | -8/Garrison | Core integrity fell below 20% 5733 | -8/Garrison | Destroyed by G-47 Trooper with Particle Gun Last Messages --------------- 05707_ Cld. Ion Engine destroyed. 05708_ M-28 Smith fits Backup Propulsion III on G-47 Trooper. 05708_ Acquired 94 matter. 05712_ The unstable cave ceiling collapses. 05713_ M-28 Smith fits Backup Propulsion III on G-47 Trooper. 05714_ Hrd. Light Armor Plating destroyed. 05718_ Imp. Aluminum Leg destroyed. 05721_ Acquired 33 matter. 05722_ Imp. Titanium Leg severed. 05724_ Acquired 10 matter. 05724_ S-10 Pest destroyed. 05725_ Acquired 10 matter. 05726_ G-47 Trooper destroyed. 05727_ Cld. Ion Engine destroyed. 05727_ Ion Cannon destroyed. 05728_ Imp. Heat Sink destroyed. 05732_ Cld. Ion Engine destroyed. 05732_ Kicked Y-45 Defender out of the way. 05732_ Triggered Alarm Trap. 05732_ An alarm sounds. Map ----- +----------------------------------------------------+ | ##### ######?????????????????????????? | | #?????????????????????????? | | ######## #?????????????????????????? | | #??????#####?????????????????????????? | | #????????????????????????????????????? | | #????????????????????????????????????? | | #????????????????????????????????????? | | #??????????###???????????????????????? | | #?????????## #####??????????????????? | | #???????#### # ##?????????????????? | | #???????# # # #????????""""#????? | | ######### ## # ##### " "#????? | | "%% *=%/ %!%==%% #????? | | # ####### # ##!= ##### " "#????? | | # #??##### *#=# #???????" ""#????? | | # #??# # #????????????????? | | # #??# ##????????????????? | | # #??# ## # = ##?????????????????? | | # #??###??## ![!]##?????????????????? | | ###????# ##### # #?????????????????? | | !#????# " ###?????????????????? | | #[#????# ###### "#???????????????????? | | #%#???#####???#" #?????????###???????? | | #=#???# #???# "#???????? #???????? | | #[##### #####""#####+### < #???????? | | !%= =%!%= ggmb%=l @Y #???????? | | % ! =!s! %/g =gb ^ #???????? | | %* % *% YY #???????? | | # ############# #############???????? | | # #???????????####???????????????????? | | # #??????????????????????????????????? | | # #??????????????????????????????????? | | # #??????????????????????????????????? | | # #??????????????????????????????????? | | # #??????????????????????????????????? | | ? ???????????????????????????????????? | | ? ???????????????????????????????????? | | ? ???????????????????????????????????? | | ? ???????????????????????????????????? | | ? ???????????????????????????????????? | | ? ???????????????????????????????????? | | ? ???????????????????????????????????? | | ?????????????????????????????????????? | | ?????????????????????????????????????? | | ?????????????????????????????????????? | | ?????????????????????????????????????? | | ?????????????????????????????????????? | | ?????????????????????????????????????? | | ?????????????????????????????????????? | | ?????????????????????????????????????? | +----------------------------------------------------+ Best States ------------- Heat Dissipation 45 Energy Generation 25 Energy Capacity 460 Matter Stores 300 Matter Capacity 300 Sight Range 16 Robot Scan Range 30 Terrain Scan Density 10 Armor Coverage 300 Resistance: KI 20 Evasion (%) 40 Recoil Reduction 2 Item Schematics ----------------- None Robot Schematics ------------------ None Fabricated ------------ Nothing Alien Tech Used ----------------- None Achievements -------------- None Challenges ------------ None Game ------ Seed CatalystCoordinationMachine Manual? 0 Play Time 00:36:54 Cumulative 140.2 hours Start 2020.12.14 @ 18:59:40 End 2020.12.14 @ 19:51:49 Sessions 1 Manual Loads 0 Difficulty Rogue Special Mode None Game No. 146 Rogue 139 Adventurer 0 Explorer 7 Win Type - Total 2 Types 0/0/2/0/0/0/0/0/0 Lore% 58 Gallery% 85 Achievement% 64 Wizard Run 0 Options --------- ASCII 0 Keyboard 0 Movement Mouse Keybinds 0 Fullscreen 1 Font 18/X11 Map View 76x50 Tactical HUD 1 Map Filters NONE Filters NONE Steam 1 RUN: d7cb16b5-82bd-483f-9b0d-a0590796cb26